[Event "Vastgota Open 2023"]
[Site "Skara stadshotell, Jarnvagsgatan 5, Skara, Sweden"]
[Date "2023.02.18"]
[Round "3.12"]
[White "Ernst, Thomas"]
[Black "Muntean, Felix"]
[Result "1-0"]
[TimeControl "15 minutes + 5 seconds per move from move one (Round 1 - 2) / 30 minutes + 10 seconds per move from move one (Round 3 - 9)"]
[WhiteTitle "GM"]
[WhiteFideId "1700065"]
[BlackFideId "1054465"]
[WhiteElo "2315"]
[BlackElo "1441"]

1. e4 {[%clk 00:30:18]} e5 {[%clk 00:30:17]} 2. Nf3 {[%clk 00:30:26]} {[%emt
00:00:03]} Nc6 {[%clk 00:30:24]} {[%emt 00:00:02]} 3. Bc4 {[%clk 00:30:34]}
{[%emt 00:00:03]} Nf6 {[%clk 00:30:30]} {[%emt 00:00:04]} 4. Ng5 {[%clk
00:30:41]} {[%emt 00:00:03]} d5 {[%clk 00:30:25]} {[%emt 00:00:15]} 5. exd5
{[%clk 00:30:48]} {[%emt 00:00:03]} Na5 {[%clk 00:30:24]} {[%emt 00:00:10]} 6.
Bb5+ {[%clk 00:30:54]} {[%emt 00:00:05]} Bd7 {[%clk 00:30:18]} {[%emt
00:00:15]} 7. Qe2 {[%clk 00:30:58]} {[%emt 00:00:06]} Bd6 {[%clk 00:29:57]}
{[%emt 00:00:31]} 8. Nc3 {[%clk 00:30:41]} {[%emt 00:00:27]} O-O {[%clk
00:29:29]} {[%emt 00:00:38]} 9. Bd3 {[%clk 00:29:41]} {[%emt 00:01:10]} h6
{[%clk 00:27:49]} {[%emt 00:01:51]} 10. Nge4 {[%clk 00:29:47]} {[%emt
00:00:04]} Nxe4 {[%clk 00:25:19]} {[%emt 00:02:39]} 11. Nxe4 {[%clk 00:29:53]}
{[%emt 00:00:04]} Be7 {[%clk 00:24:14]} {[%emt 00:01:16]} 12. a3 {[%clk
00:29:19]} {[%emt 00:00:43]} b6 {[%clk 00:24:22]} {[%emt 00:00:02]} 13. b4
{[%clk 00:29:25]} {[%emt 00:00:05]} Nb7 {[%clk 00:24:28]} {[%emt 00:00:04]} 14.
Bb2 {[%clk 00:29:22]} {[%emt 00:00:12]} f5 {[%clk 00:23:41]} {[%emt 00:00:58]}
15. Ng3 {[%clk 00:28:57]} {[%emt 00:00:34]} e4 {[%clk 00:23:21]} {[%emt
00:00:31]} 16. Ba6 {[%clk 00:28:37]} {[%emt 00:00:28]} Nd6 {[%clk 00:23:27]}
{[%emt 00:00:05]} 17. O-O {[%clk 00:28:19]} {[%emt 00:00:29]} Bf6 {[%clk
00:23:09]} {[%emt 00:00:27]} 18. Bxf6 {[%clk 00:28:15]} {[%emt 00:00:15]} Qxf6
{[%clk 00:22:43]} {[%emt 00:00:35]} 19. c4 {[%clk 00:28:01]} {[%emt 00:00:24]}
Rae8 {[%clk 00:20:38]} {[%emt 00:02:16]} 20. c5 {[%clk 00:27:10]} {[%emt
00:01:01]} bxc5 {[%clk 00:19:03]} {[%emt 00:01:44]} 21. bxc5 {[%clk 00:27:18]}
{[%emt 00:00:02]} Nf7 {[%clk 00:19:09]} {[%emt 00:00:04]} 22. c6 {[%clk
00:26:39]} {[%emt 00:00:49]} Bc8 {[%clk 00:18:44]} {[%emt 00:00:34]} 23. Bxc8
{[%clk 00:26:47]} {[%emt 00:00:04]} Rxc8 {[%clk 00:18:51]} {[%emt 00:00:02]} 24.
d3 {[%clk 00:25:30]} {[%emt 00:01:28]} Nd6 {[%clk 00:17:37]} {[%emt 00:01:24]}
25. dxe4 {[%clk 00:25:29]} {[%emt 00:00:10]} fxe4 {[%clk 00:16:53]} {[%emt
00:00:55]} 26. Nxe4 {[%clk 00:22:57]} {[%emt 00:02:42]} Qe5 {[%clk 00:16:55]}
{[%emt 00:00:07]} 27. f3 {[%clk 00:22:48]} {[%emt 00:00:19]} Qxd5 {[%clk
00:16:42]} {[%emt 00:00:24]} 28. Rfd1 {[%clk 00:22:00]} {[%emt 00:00:57]} Qxc6
{[%clk 00:15:34]} {[%emt 00:01:18]} 29. Nxd6 {[%clk 00:21:58]} {[%emt
00:00:12]} Qb6+ {[%clk 00:14:49]} {[%emt 00:00:55]} 30. Kh1 {[%clk 00:21:14]}
{[%emt 00:00:54]} cxd6 {[%clk 00:14:44]} {[%emt 00:00:16]} 31. Qe6+ {[%clk
00:21:21]} {[%emt 00:00:03]} Kh8 {[%clk 00:14:26]} {[%emt 00:00:28]} 32. Qxd6
{[%clk 00:21:26]} {[%emt 00:00:05]} Qf2 {[%clk 00:11:48]} {[%emt 00:02:48]} 33.
Rd2 {[%clk 00:20:38]} {[%emt 00:00:56]} Qe3 {[%clk 00:11:07]} {[%emt 00:00:52]}
34. h3 {[%emt 00:00:34]} Rf6 {[%clk 00:09:51]} {[%emt 00:01:24]} 35. Qd4 {[%clk
00:18:44]} {[%emt 00:01:40]} Qe7 {[%clk 00:09:58]} {[%emt 00:00:06]} 36. a4
{[%clk 00:18:30]} {[%emt 00:00:23]} Rfc6 {[%clk 00:09:36]} {[%emt 00:00:31]} 37.
a5 {[%clk 00:17:48]} {[%emt 00:00:52]} Rc4 {[%clk 00:08:57]} {[%emt 00:00:50]}
38. Qd3 {[%clk 00:15:45]} {[%emt 00:02:07]} Qe5 {[%clk 00:08:57]} {[%emt
00:00:15]} 39. Rdd1 {[%clk 00:15:21]} {[%emt 00:00:34]} Rc3 {[%clk 00:07:56]}
{[%emt 00:01:13]} 40. Qd4 {[%clk 00:13:53]} {[%emt 00:01:37]} Qe7 {[%clk
00:06:24]} {[%emt 00:01:41]} 41. Re1 {[%clk 00:12:39]} {[%emt 00:01:24]} Qf7
{[%clk 00:05:52]} {[%emt 00:00:43]} 42. Re3 {[%clk 00:11:01]} {[%emt 00:01:48]}
Rc2 {[%clk 00:04:04]} {[%emt 00:01:59]} 43. Qd3 {[%clk 00:08:42]} {[%emt
00:02:27]} Rc1+ {[%clk 00:03:04]} {[%emt 00:01:12]} 44. Re1 {[%clk 00:08:37]}
{[%emt 00:00:13]} R1c3 {[%clk 00:03:10]} {[%emt 00:00:04]} 45. Qe4 {[%clk
00:08:27]} {[%emt 00:00:15]} Qb3 {[%clk 00:02:37]} {[%emt 00:00:49]} 46. Rad1
{[%clk 00:08:06]} {[%emt 00:00:31]} R3c4 {[%clk 00:02:01]} {[%emt 00:00:47]} 47.
Qg6 {[%clk 00:07:49]} {[%emt 00:00:23]} Qb5 {[%clk 00:01:16]} {[%emt 00:00:58]}
48. Re7 {[%clk 00:06:34]} {[%emt 00:01:24]} Qb2 {[%clk 00:01:24]} {[%emt
00:00:04]} 49. Rxa7 {[%clk 00:05:45]} {[%emt 00:00:57]} Rc1 {[%clk 00:01:20]}
{[%emt 00:00:16]} 50. Rad7 {[%clk 00:05:42]} {[%emt 00:00:12]} Rxd1+ {[%clk
00:00:19]} {[%emt 00:01:11]} 51. Rxd1 {[%clk 00:05:49]} {[%emt 00:00:03]} Qb3
{[%clk 00:00:18]} {[%emt 00:00:12]} 52. Re1 {[%clk 00:05:17]} {[%emt 00:00:40]}
Qb5 {[%clk 00:00:23]} {[%emt 00:00:07]} 53. a6 {[%clk 00:04:45]} {[%emt
00:00:41]} Ra8 {[%clk 00:00:30]} {[%emt 00:00:04]} 54. h4 {[%clk 00:04:02]}
{[%emt 00:00:53]} Kg8 {[%clk 00:00:14]} {[%emt 00:00:27]} 55. Re7 {[%clk
00:03:37]} {[%emt 00:00:30]} Qc5 {[%emt 00:00:18]} 1-0

[Event "Vastgota Open 2023"]
[Site "Skara stadshotell, Jarnvagsgatan 5, Skara, Sweden"]
[Date "2023.02.18"]
[Round "4.1"]
[White "Seo, Jung Min"]
[Black "Kockum, Anton Frisk"]
[Result "1-0"]
[TimeControl "15 minutes + 5 seconds per move from move one (Round 1 - 2) / 30 minutes + 10 seconds per move from move one (Round 3 - 9)"]
[WhiteTitle "IM"]
[BlackTitle "FM"]
[WhiteFideId "1734687"]
[BlackFideId "1709143"]
[WhiteElo "2448"]
[BlackElo "2367"]

1. d4 {[%clk 00:30:19]} {[%emt 00:08:53]} f5 {[%clk 00:30:14]} {[%emt
00:00:07]} 2. g3 {[%clk 00:30:09]} {[%emt 00:00:20]} Nf6 {[%clk 00:30:23]}
{[%emt 00:00:02]} 3. Bg2 {[%clk 00:30:18]} g6 {[%clk 00:30:31]} {[%emt
00:00:02]} 4. Nf3 {[%clk 00:29:52]} {[%emt 00:00:36]} Bg7 {[%clk 00:30:37]}
{[%emt 00:00:03]} 5. O-O {[%clk 00:29:17]} {[%emt 00:00:45]} O-O {[%clk
00:30:44]} {[%emt 00:00:03]} 6. c4 {[%clk 00:29:03]} {[%emt 00:00:25]} d6
{[%clk 00:30:51]} {[%emt 00:00:02]} 7. Nc3 {[%clk 00:28:56]} {[%emt 00:00:17]}
Nc6 {[%clk 00:30:59]} {[%emt 00:00:02]} 8. d5 {[%clk 00:28:27]} {[%emt
00:00:40]} Ne5 {[%clk 00:31:07]} {[%emt 00:00:02]} 9. Qb3 {[%clk 00:26:35]}
{[%emt 00:02:02]} Nfd7 {[%clk 00:30:57]} {[%emt 00:00:19]} 10. Nxe5 {[%clk
00:26:20]} {[%emt 00:00:25]} Nxe5 {[%clk 00:31:05]} {[%emt 00:00:02]} 11. h3
{[%clk 00:25:33]} {[%emt 00:00:58]} a5 {[%clk 00:23:44]} {[%emt 00:07:31]} 12.
f4 {[%clk 00:24:46]} {[%emt 00:00:56]} Nd7 {[%clk 00:22:46]} {[%emt 00:01:08]}
13. Be3 {[%clk 00:24:49]} {[%emt 00:00:07]} Nc5 {[%clk 00:21:09]} {[%emt
00:01:47]} 14. Qc2 {[%clk 00:24:14]} {[%emt 00:00:44]} e5 {[%clk 00:19:25]}
{[%emt 00:01:55]} 15. dxe6 {[%clk 00:24:05]} {[%emt 00:00:19]} Nxe6 {[%clk
00:16:54]} {[%emt 00:02:41]} 16. Rad1 {[%clk 00:23:49]} {[%emt 00:00:26]} Qe7
{[%clk 00:16:47]} {[%emt 00:00:17]} 17. Nd5 {[%clk 00:23:49]} {[%emt 00:00:10]}
Qf7 {[%clk 00:16:54]} {[%emt 00:00:04]} 18. Bf2 {[%clk 00:23:13]} {[%emt
00:00:45]} Bd7 {[%clk 00:16:19]} {[%emt 00:00:46]} 19. b3 {[%clk 00:22:45]}
{[%emt 00:00:37]} Bc6 {[%clk 00:15:56]} {[%emt 00:00:33]} 20. e4 {[%clk
00:22:52]} {[%emt 00:00:03]} fxe4 {[%clk 00:15:37]} {[%emt 00:00:29]} 21. Bxe4
{[%clk 00:22:59]} {[%emt 00:00:03]} Rae8 {[%clk 00:14:50]} {[%emt 00:00:57]} 22.
Rfe1 {[%clk 00:22:50]} {[%emt 00:00:18]} Kh8 {[%clk 00:14:11]} {[%emt
00:00:50]} 23. Qd2 {[%clk 00:22:10]} {[%emt 00:00:50]} Nc5 {[%clk 00:08:11]}
{[%emt 00:06:10]} 24. Bg2 {[%clk 00:18:46]} {[%emt 00:03:34]} b6 {[%clk
00:06:11]} {[%emt 00:02:11]} 25. Bd4 {[%clk 00:17:59]} {[%emt 00:00:56]} Rxe1+
{[%clk 00:03:40]} {[%emt 00:02:41]} 26. Rxe1 {[%clk 00:18:01]} {[%emt
00:00:07]} Re8 {[%clk 00:03:46]} {[%emt 00:00:05]} 27. Bxg7+ {[%clk 00:18:05]}
{[%emt 00:00:07]} Qxg7 {[%clk 00:03:53]} {[%emt 00:00:03]} 28. Rxe8+ {[%clk
00:17:54]} {[%emt 00:00:20]} Bxe8 {[%clk 00:04:01]} {[%emt 00:00:02]} 29. Qe3
{[%clk 00:17:38]} {[%emt 00:00:25]} Bc6 {[%clk 00:03:49]} {[%emt 00:00:23]} 30.
Nc3 {[%clk 00:17:30]} {[%emt 00:00:18]} Bxg2 {[%clk 00:03:31]} {[%emt
00:00:29]} 31. Kxg2 {[%clk 00:17:39]} h5 {[%clk 00:02:16]} {[%emt 00:01:26]} 32.
Kf3 {[%clk 00:16:42]} {[%emt 00:01:06]} Kh7 {[%clk 00:02:18]} {[%emt 00:00:09]}
33. Nd5 {[%clk 00:16:29]} {[%emt 00:00:22]} Qf7 {[%clk 00:00:42]} {[%emt
00:01:47]} 34. g4 {[%clk 00:16:24]} {[%emt 00:00:14]} Ne6 {[%clk 00:00:32]}
{[%emt 00:00:19]} 35. Kg3 {[%clk 00:16:14]} {[%emt 00:00:19]} c6 {[%clk
00:00:15]} {[%emt 00:00:29]} 36. Nc3 {[%clk 00:15:42]} {[%emt 00:00:43]} Nc5
{[%clk 00:00:18]} {[%emt 00:00:07]} 37. Kf3 {[%clk 00:14:33]} {[%emt 00:01:18]}
Qf6 {[%clk 00:00:20]} {[%emt 00:00:08]} 38. gxh5 {[%clk 00:14:00]} {[%emt
00:00:43]} gxh5 {[%clk 00:00:25]} {[%emt 00:00:05]} 39. Ne4 {[%clk 00:14:09]}
Qf5 {[%clk 00:00:12]} {[%emt 00:00:23]} 40. Ng5+ {[%clk 00:14:11]} {[%emt
00:00:07]} Kh6 {[%clk 00:00:16]} {[%emt 00:00:08]} 41. Qd4 {[%clk 00:14:08]}
{[%emt 00:00:11]} Qd3+ {[%clk 00:00:15]} {[%emt 00:00:13]} 42. Qxd3 {[%clk
00:14:16]} {[%emt 00:00:01]} Nxd3 {[%clk 00:00:24]} 43. Nf7+ {[%clk 00:13:55]}
{[%emt 00:00:31]} Kg6 {[%clk 00:00:34]} {[%emt 00:00:01]} 44. Nxd6 {[%clk
00:14:03]} Nc1 {[%clk 00:00:42]} {[%emt 00:00:02]} 45. f5+ {[%clk 00:13:43]}
{[%emt 00:00:30]} Kf6 {[%clk 00:00:43]} {[%emt 00:00:10]} 46. Kf4 {[%clk
00:13:51]} {[%emt 00:00:01]} Nd3+ {[%clk 00:00:24]} {[%emt 00:00:29]} 47. Ke3
{[%clk 00:14:00]} {[%emt 00:00:01]} Nc1 {[%clk 00:00:27]} {[%emt 00:00:07]} 48.
Ke4 {[%clk 00:12:06]} {[%emt 00:02:03]} Nxa2 {[%clk 00:00:35]} {[%emt
00:00:04]} 49. Kf4 {[%clk 00:12:16]} Nc3 {[%clk 00:00:22]} {[%emt 00:00:23]} 50.
Ne8+ {[%clk 00:11:53]} {[%emt 00:00:30]} Ke7 {[%clk 00:00:12]} {[%emt
00:00:22]} 51. Ng7 {[%clk 00:12:01]} {[%emt 00:00:02]} b5 {[%clk 00:00:21]}
{[%emt 00:00:02]} 52. cxb5 {[%clk 00:11:55]} {[%emt 00:00:16]} cxb5 {[%clk
00:00:30]} {[%emt 00:00:01]} 53. Ke3 {[%clk 00:11:57]} {[%emt 00:00:07]} a4
{[%clk 00:00:29]} {[%emt 00:00:12]} 54. bxa4 {[%clk 00:12:06]} {[%emt
00:00:01]} bxa4 {[%clk 00:00:38]} 55. Kd3 {[%clk 00:12:14]} {[%emt 00:00:02]}
a3 {[%clk 00:00:39]} {[%emt 00:00:09]} 56. Kxc3 {[%clk 00:12:11]} {[%emt
00:00:02]} 1-0

[Event "Vastgota Open 2023"]
[Site "Skara stadshotell, Jarnvagsgatan 5, Skara, Sweden"]
[Date "2023.02.18"]
[Round "4.2"]
[White "Galperin, Platon"]
[Black "Lindgren, Philip"]
[Result "1-0"]
[TimeControl "15 minutes + 5 seconds per move from move one (Round 1 - 2) / 30 minutes + 10 seconds per move from move one (Round 3 - 9)"]
[WhiteTitle "GM"]
[BlackTitle "IM"]
[WhiteFideId "14165414"]
[BlackFideId "1713230"]
[WhiteElo "2429"]
[BlackElo "2282"]

1. Nf3 {[%clk 00:29:04]} {[%emt 00:01:15]} d5 {[%clk 00:29:43]} {[%emt
00:00:37]} 2. g3 {[%clk 00:29:12]} {[%emt 00:00:03]} c6 {[%clk 00:28:48]}
{[%emt 00:01:05]} 3. Bg2 {[%clk 00:29:19]} {[%emt 00:00:03]} Bg4 {[%clk
00:28:15]} {[%emt 00:00:42]} 4. h3 {[%clk 00:29:22]} {[%emt 00:00:07]} Bh5
{[%clk 00:28:10]} {[%emt 00:00:15]} 5. c4 {[%clk 00:29:29]} {[%emt 00:00:03]}
e6 {[%clk 00:27:00]} {[%emt 00:01:20]} 6. d4 {[%clk 00:29:35]} {[%emt
00:00:05]} Nd7 {[%clk 00:26:21]} {[%emt 00:00:49]} 7. O-O {[%clk 00:29:40]}
{[%emt 00:00:05]} Ngf6 {[%clk 00:26:10]} {[%emt 00:00:21]} 8. cxd5 {[%clk
00:29:47]} {[%emt 00:00:03]} cxd5 {[%clk 00:24:48]} {[%emt 00:01:32]} 9. Nc3
{[%clk 00:29:09]} {[%emt 00:00:48]} Be7 {[%clk 00:24:16]} {[%emt 00:00:42]} 10.
Qb3 {[%clk 00:29:16]} {[%emt 00:00:03]} Qb6 {[%clk 00:22:54]} {[%emt 00:01:32]}
11. Qxb6 {[%clk 00:29:02]} {[%emt 00:00:24]} Nxb6 {[%clk 00:22:43]} {[%emt
00:00:20]} 12. g4 {[%clk 00:28:23]} {[%emt 00:00:49]} Bg6 {[%clk 00:22:50]}
{[%emt 00:00:03]} 13. Ne5 {[%clk 00:28:31]} {[%emt 00:00:02]} Nfd7 {[%clk
00:20:52]} {[%emt 00:02:09]} 14. Nxg6 {[%clk 00:28:06]} {[%emt 00:00:35]} hxg6
{[%clk 00:20:59]} {[%emt 00:00:02]} 15. Bf4 {[%emt 00:00:08]} O-O {[%clk
00:18:56]} {[%emt 00:02:11]} 16. e4 {[%clk 00:27:40]} {[%emt 00:00:41]} Nf6
{[%clk 00:18:14]} {[%emt 00:00:51]} 17. Bg5 {[%clk 00:22:26]} {[%emt 00:05:24]}
dxe4 {[%clk 00:16:54]} {[%emt 00:01:31]} 18. Nxe4 {[%clk 00:22:27]} {[%emt
00:00:09]} Nbd5 {[%clk 00:16:06]} {[%emt 00:00:58]} 19. Nc5 {[%clk 00:22:05]}
{[%emt 00:00:30]} b6 {[%clk 00:15:56]} {[%emt 00:00:22]} 20. Nd3 {[%clk
00:22:12]} {[%emt 00:00:02]} Rac8 {[%clk 00:15:31]} {[%emt 00:00:36]} 21. Rac1
{[%clk 00:21:58]} {[%emt 00:00:24]} Nd7 {[%clk 00:11:21]} {[%emt 00:04:20]} 22.
Bd2 {[%clk 00:19:51]} {[%emt 00:02:16]} Bf6 {[%clk 00:10:09]} {[%emt 00:01:22]}
23. Bxd5 {[%clk 00:19:53]} {[%emt 00:00:08]} exd5 {[%clk 00:10:18]} {[%emt
00:00:02]} 24. Be3 {[%clk 00:19:55]} {[%emt 00:00:08]} b5 {[%clk 00:07:57]}
{[%emt 00:02:31]} 25. Nb4 {[%clk 00:19:09]} {[%emt 00:00:56]} Nb6 {[%clk
00:07:46]} {[%emt 00:00:20]} 26. g5 {[%clk 00:19:07]} {[%emt 00:00:13]} Be7
{[%clk 00:05:48]} {[%emt 00:02:07]} 27. Nc6 {[%clk 00:19:14]} {[%emt 00:00:03]}
Rfe8 {[%clk 00:01:07]} {[%emt 00:04:52]} 28. Nxa7 {[%clk 00:19:20]} {[%emt
00:00:04]} Ra8 {[%clk 00:00:54]} {[%emt 00:00:23]} 29. Nxb5 {[%clk 00:19:11]}
{[%emt 00:00:20]} Rxa2 {[%clk 00:00:59]} {[%emt 00:00:04]} 30. Rc6 {[%clk
00:19:16]} {[%emt 00:00:05]} Nc4 {[%clk 00:00:39]} {[%emt 00:00:30]} 31. Bc1
{[%clk 00:19:24]} {[%emt 00:00:02]} Rd8 {[%clk 00:00:00]} 1-0

[Event "Vastgota Open 2023"]
[Site "Skara stadshotell, Jarnvagsgatan 5, Skara, Sweden"]
[Date "2023.02.18"]
[Round "4.3"]
[White "Trost, Edvin"]
[Black "Golubka, Petro"]
[Result "0-1"]
[TimeControl "15 minutes + 5 seconds per move from move one (Round 1 - 2) / 30 minutes + 10 seconds per move from move one (Round 3 - 9)"]
[WhiteTitle "FM"]
[BlackTitle "GM"]
[WhiteFideId "1729519"]
[BlackFideId "14114224"]
[WhiteElo "2226"]
[BlackElo "2407"]

1. Nf3 {[%clk 00:30:12]} {[%emt 00:00:02]} e6 {[%clk 00:30:16]} {[%emt
00:00:11]} 2. g3 {[%clk 00:30:11]} {[%emt 00:00:10]} g5 {[%clk 00:30:22]}
{[%emt 00:00:04]} 3. d4 {[%clk 00:29:45]} {[%emt 00:00:36]} h6 {[%clk
00:30:26]} {[%emt 00:00:05]} 4. Bg2 {[%clk 00:29:45]} {[%emt 00:00:11]} Bg7
{[%clk 00:30:10]} {[%emt 00:00:26]} 5. e4 {[%clk 00:29:29]} {[%emt 00:00:26]}
Ne7 {[%clk 00:30:10]} {[%emt 00:00:11]} 6. Nc3 {[%clk 00:28:34]} {[%emt
00:01:05]} d5 {[%clk 00:30:09]} {[%emt 00:00:10]} 7. O-O {[%clk 00:28:28]}
{[%emt 00:00:16]} Nbc6 {[%clk 00:30:15]} {[%emt 00:00:05]} 8. e5 {[%clk
00:27:09]} {[%emt 00:01:28]} Nf5 {[%clk 00:29:44]} {[%emt 00:00:41]} 9. g4
{[%clk 00:23:34]} {[%emt 00:03:45]} Nfe7 {[%clk 00:29:52]} {[%emt 00:00:02]} 10.
h4 {[%clk 00:23:21]} {[%emt 00:00:23]} gxh4 {[%clk 00:29:57]} {[%emt 00:00:05]}
11. Nxh4 {[%clk 00:23:22]} {[%emt 00:00:09]} Nxd4 {[%clk 00:29:30]} {[%emt
00:00:37]} 12. Qxd4 {[%clk 00:21:17]} {[%emt 00:02:15]} Nc6 {[%clk 00:29:38]}
{[%emt 00:00:02]} 13. Qc5 {[%clk 00:21:27]} Qxh4 {[%clk 00:29:30]} {[%emt
00:00:18]} 14. Nb5 {[%clk 00:21:36]} Bxe5 {[%clk 00:28:54]} {[%emt 00:00:46]}
15. f4 {[%clk 00:21:45]} {[%emt 00:00:02]} a6 {[%clk 00:26:46]} {[%emt
00:02:18]} 16. fxe5 {[%clk 00:19:17]} {[%emt 00:02:37]} axb5 {[%clk 00:26:49]}
{[%emt 00:00:08]} 17. Bd2 {[%clk 00:18:40]} {[%emt 00:00:46]} Ra4 {[%clk
00:26:08]} {[%emt 00:00:47]} 18. b4 {[%clk 00:18:15]} {[%emt 00:00:39]} Bd7
{[%clk 00:24:15]} {[%emt 00:02:03]} 19. Rf4 {[%clk 00:15:07]} {[%emt 00:03:18]}
b6 {[%clk 00:22:54]} {[%emt 00:01:31]} 20. Qxb5 {[%clk 00:14:02]} {[%emt
00:01:15]} Nxb4 {[%clk 00:16:10]} {[%emt 00:06:54]} 21. Qf1 {[%clk 00:13:33]}
{[%emt 00:00:39]} Nxc2 {[%clk 00:15:53]} {[%emt 00:00:27]} 22. Rc1 {[%clk
00:13:22]} {[%emt 00:00:20]} Rxa2 {[%clk 00:15:25]} {[%emt 00:00:39]} 23. Rxf7
{[%clk 00:12:55]} {[%emt 00:00:38]} c6 {[%clk 00:10:33]} {[%emt 00:05:01]} 24.
Rf4 {[%clk 00:06:34]} {[%emt 00:06:30]} Qg3 {[%clk 00:08:50]} {[%emt 00:01:54]}
25. Rf7 {[%clk 00:03:14]} {[%emt 00:03:30]} Ne3 {[%clk 00:08:05]} {[%emt
00:00:55]} 26. Bxe3 {[%emt 00:00:04]} Rxg2+ {[%clk 00:07:36]} {[%emt 00:00:37]}
27. Qxg2 {[%clk 00:03:31]} {[%emt 00:00:01]} Qxe3+ {[%clk 00:07:26]} {[%emt
00:00:20]} 28. Qf2 {[%clk 00:03:41]} Qxc1+ {[%clk 00:07:19]} {[%emt 00:00:17]}
29. Kh2 {[%clk 00:03:49]} {[%emt 00:00:03]} Qg5 {[%clk 00:07:11]} {[%emt
00:00:14]} 30. Rf6 {[%clk 00:03:46]} {[%emt 00:00:16]} Qxe5+ {[%clk 00:06:48]}
{[%emt 00:00:33]} 31. Kh3 {[%clk 00:03:51]} {[%emt 00:00:05]} h5 {[%clk
00:06:35]} {[%emt 00:00:23]} 32. g5 {[%clk 00:03:59]} {[%emt 00:00:01]} Qxg5
{[%clk 00:06:27]} {[%emt 00:00:17]} 33. Rf7 {[%clk 00:04:04]} {[%emt 00:00:07]}
h4 {[%clk 00:06:15]} {[%emt 00:00:22]} 34. Kh2 {[%clk 00:03:59]} {[%emt
00:00:15]} Qg3+ {[%clk 00:06:14]} {[%emt 00:00:11]} 35. Kh1 {[%clk 00:04:08]}
Qh3+ {[%clk 00:06:05]} {[%emt 00:00:15]} 36. Kg1 {[%clk 00:04:14]} {[%emt
00:00:08]} Rg8+ {[%clk 00:06:11]} {[%emt 00:00:04]} 0-1

[Event "Vastgota Open 2023"]
[Site "Skara stadshotell, Jarnvagsgatan 5, Skara, Sweden"]
[Date "2023.02.18"]
[Round "4.4"]
[White "Kucuksari, Kaan"]
[Black "Palchuk, Andrii"]
[Result "0-1"]
[TimeControl "15 minutes + 5 seconds per move from move one (Round 1 - 2) / 30 minutes + 10 seconds per move from move one (Round 3 - 9)"]
[WhiteTitle "IM"]
[BlackTitle "FM"]
[WhiteFideId "6380166"]
[BlackFideId "14176688"]
[WhiteElo "2380"]
[BlackElo "2238"]

1. d4 {[%clk 00:30:19]} {[%emt 00:00:01]} Nf6 {[%clk 00:30:16]} {[%emt
00:00:03]} 2. Bg5 {[%clk 00:30:23]} {[%emt 00:00:07]} e6 {[%clk 00:30:03]}
{[%emt 00:00:23]} 3. e4 {[%clk 00:30:30]} {[%emt 00:00:03]} h6 {[%clk
00:30:09]} {[%emt 00:00:03]} 4. Bxf6 {[%clk 00:30:38]} {[%emt 00:00:03]} Qxf6
{[%clk 00:30:16]} {[%emt 00:00:02]} 5. c3 {[%clk 00:30:47]} {[%emt 00:00:02]}
d6 {[%clk 00:29:47]} {[%emt 00:00:38]} 6. Bd3 {[%clk 00:30:54]} {[%emt
00:00:03]} g6 {[%clk 00:29:55]} {[%emt 00:00:02]} 7. Ne2 {[%clk 00:31:00]}
{[%emt 00:00:04]} Bg7 {[%clk 00:30:03]} {[%emt 00:00:02]} 8. O-O {[%clk
00:31:07]} {[%emt 00:00:03]} O-O {[%clk 00:30:02]} {[%emt 00:00:11]} 9. f4
{[%clk 00:31:08]} {[%emt 00:00:09]} Qe7 {[%clk 00:29:16]} {[%emt 00:00:56]} 10.
Nd2 {[%clk 00:30:58]} {[%emt 00:00:21]} e5 {[%clk 00:29:16]} {[%emt 00:00:10]}
11. Nc4 {[%clk 00:27:20]} {[%emt 00:03:48]} Nc6 {[%clk 00:25:13]} {[%emt
00:04:13]} 12. d5 {[%clk 00:25:15]} {[%emt 00:02:16]} Nb8 {[%clk 00:25:16]}
{[%emt 00:00:06]} 13. fxe5 {[%clk 00:23:17]} {[%emt 00:02:08]} Bxe5 {[%clk
00:23:34]} {[%emt 00:01:51]} 14. Nxe5 {[%clk 00:23:05]} {[%emt 00:00:22]} Qxe5
{[%clk 00:23:42]} {[%emt 00:00:02]} 15. Qd2 {[%clk 00:22:54]} {[%emt 00:00:22]}
Kg7 {[%clk 00:22:32]} {[%emt 00:01:19]} 16. Nd4 {[%clk 00:20:40]} {[%emt
00:02:24]} Qe7 {[%clk 00:21:58]} {[%emt 00:00:44]} 17. e5 {[%clk 00:17:47]}
{[%emt 00:03:03]} dxe5 {[%clk 00:19:39]} {[%emt 00:02:30]} 18. Rae1 {[%clk
00:17:55]} {[%emt 00:00:01]} Nd7 {[%clk 00:09:26]} {[%emt 00:10:23]} 19. Bxg6
{[%clk 00:08:26]} {[%emt 00:09:40]} Qg5 {[%clk 00:03:57]} {[%emt 00:05:38]} 20.
Re3 {[%clk 00:01:34]} {[%emt 00:07:03]} Nb6 {[%emt 00:01:29]} 21. Bc2 {[%clk
00:00:55]} {[%emt 00:00:48]} Nc4 {[%clk 00:02:29]} {[%emt 00:00:20]} 22. Qd1
{[%clk 00:00:21]} {[%emt 00:00:44]} Nxe3 {[%clk 00:02:31]} {[%emt 00:00:08]}
0-1